fUSD/lending_fUSD_20240517
["ID","MTS","AMOUNT","RATE_DAILY","PERIOD"]
[327231801,1715904711274,-556.76,0.00011176,2]
[327231802,1715904711293,-556.76,0.00011176,2]
[327231803,1715904711308,-556.76,0.00011176,2]
[327231804,1715904711325,-556.76,0.00011176,2]
[327231805,1715904711339,-556.76,0.00011176,2]
[327231806,1715904711353,-556.8681449,0.00011176,2]
[327231807,1715904711372,-2469.42,0.00011176,2]
[327231808,1715904711389,-2469.42,0.00011176,2]
[327231809,1715904711406,-1645.85,0.00011176,2]
[327231810,1715904711419,-1645.85,0.00011176,2]
[327231811,1715904711431,-752.39,0.00011176,2]
[327231812,1715904711446,-752.39,0.00011176,2]
[327231813,1715904711462,-752.39,0.00011176,2]
[327231814,1715904711475,-752.39,0.00011176,2]
[327231815,1715904711491,-1831.98,0.00011176,2]
[327231816,1715904711503,-1831.98,0.00011176,2]
[327231817,1715904711518,-1703.91,0.00011176,2]
[327231818,1715904711531,-1703.91,0.00011176,2]
[327231819,1715904711544,-1199.7,0.00011176,2]
[327231820,1715904711558,-1199.7,0.00011176,2]
[327231821,1715904711571,-1199.7,0.00011176,2]
[327231822,1715904711585,-1199.7,0.00011176,2]
[327231823,1715904711600,-1921.67,0.00011176,2]
[327231824,1715904711613,-1921.67,0.00011176,2]
[327231825,1715904711626,-500.0,0.00011176,2]
[327231826,1715904711640,-500.0,0.00011176,2]
[327231827,1715904711654,-500.0,0.00011176,2]
[327231828,1715904711668,-500.0,0.00011176,2]
[327231829,1715904711681,-7815.15,0.00011176,2]
[327231830,1715904711694,-7815.15,0.00011176,2]
[327231831,1715904711707,-589.2,0.00011176,2]
[327231832,1715904711721,-589.2,0.00011176,2]
[327231833,1715904711735,-2943.0955,0.00011176,2]
[327231834,1715904711749,-1371.34,0.00011176,2]
[327231835,1715904711763,-1371.34,0.00011176,2]
[327231836,1715904711777,-702.57,0.00011176,2]
[327231837,1715904711791,-702.57,0.00011176,2]
[327231838,1715904711806,-544.47,0.00011176,2]
[327231839,1715904711820,-544.47,0.00011176,2]
[327231840,1715904711833,-544.47,0.00011176,2]
[327231841,1715904711846,-544.47,0.00011176,2]
[327231842,1715904711859,-544.47,0.00011176,2]
[327231843,1715904711872,-544.47,0.00011176,2]
[327231844,1715904711886,-544.54961376,0.00011176,2]
[327231845,1715904711899,-635.05,0.00011176,2]
[327231846,1715904711912,-635.05,0.00011176,2]
[327231847,1715904711927,-4601.48,0.00011176,2]
[327231848,1715904711940,-4601.48,0.00011176,2]
[327231849,1715904711953,-881.23,0.00011176,2]
[327231850,1715904711966,-881.23,0.00011176,2]
[327231851,1715904711979,-151.0,0.00011177,2]
[327231852,1715904711993,-500.0,0.00011177,2]
[327231853,1715904712006,-500.0,0.00011177,2]
[327231854,1715904712019,-428.45850279,0.00011177,2]
[327231855,1715904712032,-500.0,0.00011177,2]
[327231856,1715904712046,-500.0,0.00011177,2]
[327231857,1715904712059,-500.0,0.00011177,2]
[327231858,1715904712072,-500.0,0.00011177,2]
[327231859,1715904712085,-227.76335734,0.00011177,2]
[327231860,1715904712098,-160.03849,0.00011177,2]
[327231861,1715904712111,-374.28,0.00011177,2]
[327231862,1715904712124,-700.17,0.00011177,2]
[327231863,1715904712137,-700.17,0.00011177,2]
[327231864,1715904712149,-500.0,0.00011177,2]
[327231865,1715904712161,-500.0,0.00011177,2]
[327231866,1715904712174,-586.47,0.00011177,2]
[327231867,1715904712188,-586.47,0.00011177,2]
[327231868,1715904712201,-500.0,0.00011177,2]
[327231869,1715904712214,-243.21,0.00011177,2]
[327231870,1715904712226,-500.0,0.00011177,2]
[327231871,1715904712239,-500.0,0.00011177,2]
[327231872,1715904712251,-504.62,0.00011177,2]
[327231873,1715904712264,-504.62,0.00011177,2]
[327231874,1715904712277,-874.28,0.00011177,2]
[327231875,1715904712293,-874.28,0.00011177,2]
[327231876,1715904712306,-199.664603,0.00011177,2]
[327231877,1715904712318,-199.664603,0.00011177,2]
[327231878,1715904712332,-203.250756,0.00011177,2]
[327231879,1715904712346,-869.438713,0.00011177,2]
[327231880,1715904712360,-578.32,0.00011177,2]
[327231881,1715904712376,-578.32,0.00011177,2]
[327231882,1715904712389,-869.438713,0.00011177,2]
[327231883,1715904712403,-538.66,0.00011177,2]
[327231884,1715904712416,-538.66,0.00011177,2]
[327231885,1715904712431,-508.41,0.00011177,2]
[327231886,1715904712445,-508.41,0.00011177,2]
[327231887,1715904712458,-1031.65,0.00011177,2]
[327231888,1715904712471,-1031.65,0.00011177,2]
[327231889,1715904712484,-473.51292628,0.00011177,2]
[327231890,1715904712497,-1474.34,0.00011177,2]
[327231891,1715904712510,-1474.34,0.00011177,2]
[327231892,1715904712524,-509.62,0.00011177,2]
[327231893,1715904712537,-509.62,0.00011177,2]
[327231894,1715904712549,-923.77,0.00011177,2]
[327231895,1715904712562,-923.77,0.00011177,2]
[327231896,1715904712577,-2970.16,0.00011177,2]
[327231897,1715904712590,-2970.16,0.00011177,2]
[327231898,1715904712603,-1926.5,0.00011177,2]
[327231899,1715904712618,-1926.5,0.00011177,2]
[327231900,1715904712635,-528.06,0.00011177,2]
[327231901,1715904712648,-528.06,0.00011177,2]
[327231902,1715904712661,-528.06,0.00011177,2]
[327231903,1715904712674,-528.06,0.00011177,2]
[327231904,1715904712686,-528.27320949,0.00011177,2]
[327231905,1715904712699,-558.16,0.00011177,2]
[327231906,1715904712712,-558.16,0.00011177,2]
[327231907,1715904712724,-558.16,0.00011177,2]
[327231908,1715904712737,-558.16,0.00011177,2]
[327231909,1715904712749,-558.32568055,0.00011177,2]
[327231910,1715904712762,-151.0,0.00011177,2]
[327231911,1715904712775,-662.4,0.00011177,2]
[327231912,1715904712788,-662.4,0.00011177,2]
[327231913,1715904712802,-662.4,0.00011177,2]
[327231914,1715904712815,-662.4,0.00011177,2]
[327231915,1715904712829,-662.61214647,0.00011177,2]
[327231916,1715904712842,-500.0,0.00011177,2]
[327231917,1715904712855,-500.0,0.00011177,2]
[327231918,1715904712869,-500.0,0.00011177,2]
[327231919,1715904712882,-265.01923711,0.00011177,2]
[327231920,1715904712895,-500.0,0.00011177,2]
[327231921,1715904712910,-500.0,0.00011177,2]
[327231922,1715904712923,-374.03181721,0.00011177,2]
[327231923,1715904712937,-747.83,0.00011177,2]
[327231924,1715904712951,-747.83,0.00011177,2]
[327231925,1715904712965,-747.83,0.00011177,2]
[327231926,1715904712978,-815.21,0.00011177,2]
[327231927,1715904712991,-747.83,0.00011177,2]
[327231928,1715904713005,-815.21,0.00011177,2]
[327231929,1715904713019,-815.21,0.00011177,2]
[327231930,1715904713032,-747.84904942,0.00011177,2]
[327231931,1715904713045,-815.21,0.00011177,2]
[327231932,1715904713279,-815.26207986,0.00011177,2]
[327231933,1715904713302,-559.86,0.00011177,2]
[327231934,1715904713311,-559.86,0.00011177,2]
[327231935,1715904713320,-559.86,0.00011177,2]
[327231936,1715904713331,-559.86,0.00011177,2]
[327231937,1715904713340,-559.93696272,0.00011177,2]
[327231938,1715904713349,-530.03,0.00011177,2]
[327231939,1715904713359,-530.03,0.00011177,2]
[327231940,1715904713371,-530.03,0.00011177,2]
[327231941,1715904713381,-530.03,0.00011177,2]
[327231942,1715904713390,-530.06468082,0.00011177,2]
[327231943,1715904713399,-527.26,0.00011177,2]
[327231944,1715904713409,-527.26,0.00011177,2]
[327231945,1715904713417,-527.26,0.00011177,2]
[327231946,1715904713427,-527.26,0.00011177,2]
[327231947,1715904713436,-527.40997656,0.00011177,2]
[327231948,1715904713446,-500.0,0.00011177,2]
[327231949,1715904713455,-500.0,0.00011177,2]
[327231950,1715904713464,-522.2005305,0.00011177,2]
[327231951,1715904713476,-520.31,0.00011177,2]
[327231952,1715904713485,-520.31,0.00011177,2]
[327231953,1715904713495,-520.31,0.00011177,2]
[327231954,1715904713506,-520.31,0.00011177,2]
[327231955,1715904713516,-520.35601438,0.00011177,2]
[327231956,1715904713526,-815.39,0.00011177,2]
[327231957,1715904713537,-815.39,0.00011177,2]
[327231958,1715904713546,-815.39,0.00011177,2]
[327231959,1715904713555,-815.39,0.00011177,2]
[327231960,1715904713564,-815.4,0.00011177,2]
[327231961,1715904713573,-2739.75,0.00011177,2]
[327231962,1715904713582,-2739.75,0.00011177,2]
[327231963,1715904713591,-1202.26,0.00011177,2]
[327231964,1715904713600,-1202.26,0.00011177,2]
[327231965,1715904713609,-2469.42,0.00011177,2]
[327231966,1715904713622,-2469.42,0.00011177,2]
[327231967,1715904713631,-1645.85,0.00011177,2]
[327231968,1715904713640,-1645.85,0.00011177,2]
[327231969,1715904713650,-752.39,0.00011177,2]
[327231970,1715904713660,-752.39,0.00011177,2]
[327231971,1715904713670,-752.39,0.00011177,2]
[327231972,1715904713679,-752.39,0.00011177,2]
[327231973,1715904713689,-752.47011364,0.00011177,2]
[327231974,1715904713700,-1831.98,0.00011177,2]
[327231975,1715904713713,-1831.98,0.00011177,2]
[327231976,1715904713722,-1703.91,0.00011177,2]
[327231977,1715904713730,-1703.91,0.00011177,2]
[327231978,1715904713741,-1199.7,0.00011177,2]
[327231979,1715904713752,-1199.7,0.00011177,2]
[327231980,1715904713763,-1199.7,0.00011177,2]
[327231981,1715904713773,-1921.67,0.00011177,2]
[327231982,1715904713783,-1199.7,0.00011177,2]
[327231983,1715904713793,-1921.67,0.00011177,2]
[327231984,1715904713802,-1199.81902923,0.00011177,2]
[327231985,1715904713811,-500.0,0.00011177,2]
[327231986,1715904713821,-500.0,0.00011177,2]
[327231987,1715904713830,-396.36902528,0.00011177,2]
[327231988,1715904713839,-7815.15,0.00011177,2]
[327231989,1715904713849,-7815.15,0.00011177,2]
[327231990,1715904713858,-589.2,0.00011177,2]
[327231991,1715904713866,-589.2,0.00011177,2]
[327231992,1715904713876,-1371.34,0.00011177,2]
[327231993,1715904713884,-1371.34,0.00011177,2]
[327231994,1715904713894,-702.57,0.00011177,2]
[327231995,1715904713903,-702.57,0.00011177,2]
[327231996,1715904713913,-635.05,0.00011177,2]
[327231997,1715904713922,-635.05,0.00011177,2]
[327231998,1715904713931,-4601.48,0.00011177,2]
[327231999,1715904713941,-4601.48,0.00011177,2]
[327232000,1715904713950,-881.23,0.00011177,2]
[327232001,1715904713960,-881.23,0.00011177,2]
[327232002,1715904713969,-151.0,0.00011178,2]
[327232003,1715904713978,-700.17,0.00011178,2]
[327232004,1715904713988,-500.0,0.00011178,2]
[327232005,1715904713997,-586.47,0.00011178,2]
[327232006,1715904714006,-500.0,0.00011178,2]
[327232007,1715904714015,-504.62,0.00011178,2]
[327232008,1715904714025,-199.664603,0.00011178,2]
[327232009,1715904714034,-874.28,0.00011178,2]
[327232010,1715904714044,-199.664603,0.00011178,2]
[327232011,1715904714053,-203.250756,0.00011178,2]
[327232012,1715904714063,-869.438713,0.00011178,2]
[327232013,1715904714073,-578.32,0.00011178,2]
[327232014,1715904714083,-869.438713,0.00011178,2]
[327232015,1715904714093,-538.66,0.00011178,2]
[327232016,1715904714103,-508.41,0.00011178,2]
[327232017,1715904714113,-1031.65,0.00011178,2]
[327232018,1715904714123,-1474.34,0.00011178,2]
[327232019,1715904714133,-151.0,0.00011178,2]
[327232020,1715904714143,-815.922989,0.00011178,2]
[327232021,1715904714152,-509.62,0.00011178,2]
[327232022,1715904714162,-815.922989,0.00011178,2]
[327232023,1715904714171,-923.77,0.00011178,2]
[327232024,1715904714181,-151.0,0.00011178,2]
[327232025,1715904714190,-168.573656,0.00011178,2]
[327232026,1715904714200,-2970.16,0.00011178,2]
[327232027,1715904714209,-151.0,0.00011178,2]
[327232028,1715904714219,-340.443738,0.00011178,2]
[327232029,1715904714229,-340.443738,0.00011178,2]
[327232030,1715904714238,-1926.5,0.00011178,2]
[327232031,1715904714247,-193.0,0.00011178,2]
[327232032,1715904714257,-41358.06824842,0.0001118,2]
[327232033,1715904714266,-1188.10655167,0.00011229,2]
[327232034,1715904714276,-157.051709,0.00011248,2]
[327232035,1715904714286,-157.051709,0.00011298,2]
[327232036,1715904714299,-157.051709,0.00011348,2]
[327232037,1715904714308,-150.0,0.0001137,2]
[327232038,1715904714318,-157.051708,0.00011398,2]
[327232039,1715904714328,-175.94007964,0.000114,2]
[327232040,1715904714339,-1000.0,0.000114,2]
[327232041,1715904714348,-1188.10655167,0.00011415,2]
[327232042,1715904714357,-157.051709,0.00011448,2]
[327232043,1715904714368,-169.92629776,0.00011496,2]
[327232044,1715904714378,-157.051708,0.00011498,2]
[327232045,1715904714388,-700.17,0.00011516,2]
[327232046,1715904714397,-500.0,0.00011516,2]
[327232047,1715904714406,-586.47,0.00011516,2]
[327232048,1715904714415,-500.0,0.00011516,2]
[327232049,1715904714424,-504.62,0.00011516,2]
[327232050,1715904714433,-874.28,0.00011516,2]
[327232051,1715904714443,-578.32,0.00011516,2]
[327232052,1715904714452,-538.66,0.00011516,2]
[327232053,1715904714462,-508.41,0.00011516,2]
[327232054,1715904714472,-1031.65,0.00011516,2]
[327232055,1715904714481,-1474.34,0.00011516,2]
[327232056,1715904714491,-509.62,0.00011516,2]
[327232057,1715904714501,-923.77,0.00011516,2]
[327232058,1715904714510,-2970.16,0.00011516,2]
[327232059,1715904714520,-1926.5,0.00011516,2]
[327232060,1715904714529,-1000.0,0.0001152,2]
[327232061,1715904714538,-500.0,0.0001152,2]
[327232062,1715904714549,-157.051709,0.00011548,2]
[327232063,1715904714558,-686.8984,0.00011555,2]
[327232064,1715904714567,-2739.75,0.00011596,2]
[327232065,1715904714576,-2739.75,0.00011596,2]
[327232066,1715904714586,-1202.26,0.00011596,2]
[327232067,1715904714596,-1202.26,0.00011596,2]
[327232068,1715904714605,-2469.42,0.00011596,2]
[327232069,1715904714615,-2469.42,0.00011596,2]
[327232070,1715904714625,-1645.85,0.00011596,2]
[327232071,1715904714634,-1645.85,0.00011596,2]
[327232072,1715904714643,-1831.98,0.00011596,2]
[327232073,1715904714652,-1831.98,0.00011596,2]
[327232074,1715904714661,-1703.91,0.00011596,2]
[327232075,1715904714670,-1703.91,0.00011596,2]
[327232076,1715904714679,-1921.67,0.00011596,2]
[327232077,1715904714689,-1921.67,0.00011596,2]
[327232078,1715904714699,-7815.15,0.00011596,2]
[327232079,1715904714709,-7815.15,0.00011596,2]
[327232080,1715904714719,-589.2,0.00011596,2]
[327232081,1715904714729,-589.2,0.00011596,2]
[327232082,1715904714738,-1371.34,0.00011596,2]
[327232083,1715904714748,-1371.34,0.00011596,2]
[327232084,1715904714757,-702.57,0.00011596,2]
[327232085,1715904714767,-702.57,0.00011596,2]
[327232086,1715904714777,-635.05,0.00011596,2]
[327232087,1715904714786,-635.05,0.00011596,2]
[327232088,1715904714796,-4601.48,0.00011596,2]
[327232089,1715904714805,-4601.48,0.00011596,2]
[327232090,1715904714816,-881.23,0.00011596,2]
[327232091,1715904714826,-881.23,0.00011596,2]
[327232092,1715904714835,-155.697201,0.00011597,2]
[327232093,1715904714844,-700.17,0.00011597,2]
[327232094,1715904714854,-535.28,0.00011597,2]
[327232095,1715904714863,-586.47,0.00011597,2]
[327232096,1715904714873,-500.0,0.00011597,2]
[327232097,1715904714882,-504.62,0.00011597,2]
[327232098,1715904714891,-874.28,0.00011597,2]
[327232099,1715904714901,-578.32,0.00011597,2]
[327232100,1715904714911,-538.66,0.00011597,2]
[327232101,1715904714920,-508.41,0.00011597,2]
[327232102,1715904714930,-1031.65,0.00011597,2]
[327232103,1715904714940,-1474.34,0.00011597,2]
[327232104,1715904714949,-509.62,0.00011597,2]
[327232105,1715904714958,-923.77,0.00011597,2]
[327232106,1715904714967,-2970.16,0.00011597,2]
[327232107,1715904714977,-1926.5,0.00011597,2]
[327232108,1715904714986,-151.0,0.00011597,2]
[327232109,1715904714996,-2739.75,0.00011597,2]
[327232110,1715904715006,-2739.75,0.00011597,2]
[327232111,1715904715015,-2739.75,0.00011597,2]
[327232112,1715904715025,-2739.75,0.00011597,2]
[327232113,1715904715034,-2739.87687923,0.00011597,2]
[327232114,1715904715044,-1202.26,0.00011597,2]
[327232115,1715904715054,-1202.26,0.00011597,2]
[327232116,1715904715064,-1202.26,0.00011597,2]
[327232117,1715904715074,-1202.26,0.00011597,2]
[327232118,1715904715083,-1202.38,0.00011597,2]
[327232119,1715904715093,-2469.42,0.00011597,2]
[327232120,1715904715103,-2469.42,0.00011597,2]
[327232121,1715904715112,-2469.42,0.00011597,2]
[327232122,1715904715123,-2469.42,0.00011597,2]
[327232123,1715904715132,-2469.63087906,0.00011597,2]
[327232124,1715904715142,-1645.85,0.00011597,2]
[327232125,1715904715151,-1645.85,0.00011597,2]
[327232126,1715904715160,-1645.85,0.00011597,2]
[327232127,1715904715169,-1645.85,0.00011597,2]
[327232128,1715904715179,-1646.01346083,0.00011597,2]
[327232129,1715904715189,-1831.98,0.00011597,2]
[327232130,1715904715198,-1831.98,0.00011597,2]
[327232131,1715904715207,-1831.98,0.00011597,2]
[327232132,1715904715216,-1831.98,0.00011597,2]
[327232133,1715904715225,-1831.98232606,0.00011597,2]
[327232134,1715904715235,-1703.91,0.00011597,2]
[327232135,1715904715244,-1703.91,0.00011597,2]
[327232136,1715904715253,-1703.91,0.00011597,2]
[327232137,1715904715262,-1703.91,0.00011597,2]
[327232138,1715904715271,-1704.09824927,0.00011597,2]
[327232139,1715904715281,-1921.67,0.00011597,2]
[327232140,1715904715296,-1921.67,0.00011597,2]
[327232141,1715904715305,-1921.67,0.00011597,2]
[327232142,1715904715315,-1921.67,0.00011597,2]
[327232143,1715904715325,-1921.84095641,0.00011597,2]
[327232144,1715904715334,-7815.15,0.00011597,2]
[327232145,1715904715343,-7815.15,0.00011597,2]
[327232146,1715904715353,-7815.15,0.00011597,2]
[327232147,1715904715362,-7815.15,0.00011597,2]
[327232148,1715904715374,-7815.26864666,0.00011597,2]
[327232149,1715904715384,-589.2,0.00011597,2]
[327232150,1715904715394,-589.2,0.00011597,2]
[327232151,1715904715403,-589.2,0.00011597,2]
[327232152,1715904715413,-589.2,0.00011597,2]
[327232153,1715904715422,-589.43010433,0.00011597,2]
[327232154,1715904715432,-1371.34,0.00011597,2]
[327232155,1715904715441,-1371.34,0.00011597,2]
[327232156,1715904715451,-1371.34,0.00011597,2]
[327232157,1715904715460,-1371.34,0.00011597,2]
[327232158,1715904715469,-1371.56705581,0.00011597,2]
[327232159,1715904715478,-702.57,0.00011597,2]
[327232160,1715904715489,-702.57,0.00011597,2]
[327232161,1715904715499,-702.57,0.00011597,2]
[327232162,1715904715508,-702.57,0.00011597,2]
[327232163,1715904715518,-702.57077196,0.00011597,2]
[327232164,1715904715528,-635.05,0.00011597,2]
[327232165,1715904715537,-635.05,0.00011597,2]
[327232166,1715904715546,-635.05,0.00011597,2]
[327232167,1715904715556,-635.05,0.00011597,2]
[327232168,1715904715565,-635.14109008,0.00011597,2]
[327232169,1715904715575,-4601.48,0.00011597,2]
[327232170,1715904715584,-4601.48,0.00011597,2]
[327232171,1715904715594,-4601.48,0.00011597,2]
[327232172,1715904715604,-4601.48,0.00011597,2]
[327232173,1715904715613,-4601.67332129,0.00011597,2]
[327232174,1715904715624,-881.23,0.00011597,2]
[327232175,1715904715634,-881.23,0.00011597,2]
[327232176,1715904715644,-881.23,0.00011597,2]
[327232177,1715904715653,-881.23,0.00011597,2]
[327232178,1715904715663,-881.42836314,0.00011597,2]
[327232179,1715904715673,-157.051708,0.00011598,2]
[327232180,1715904715683,-1188.10655167,0.00011601,2]
[327232181,1715904715692,-9121.1309331,0.00011608,2]
[327232182,1715904715701,-2913.3516092,0.00011608,2]
[327232183,1715904715711,-476.8149972,0.00011608,2]
[327232184,1715904715720,-700.17,0.00011611,2]
[327232185,1715904715730,-586.47,0.00011611,2]
[327232186,1715904715740,-500.0,0.00011611,2]
[327232187,1715904715749,-504.62,0.00011611,2]
[327232188,1715904715759,-874.28,0.00011611,2]
[327232189,1715904715768,-578.32,0.00011611,2]
[327232190,1715904715778,-538.66,0.00011611,2]
[327232191,1715904715788,-508.41,0.00011611,2]
[327232192,1715904715797,-1031.65,0.00011611,2]
[327232193,1715904715808,-1474.34,0.00011611,2]
[327232194,1715904715818,-509.62,0.00011611,2]
[327232195,1715904715828,-923.77,0.00011611,2]
[327232196,1715904715838,-2970.16,0.00011611,2]
[327232197,1715904715847,-1926.5,0.00011611,2]
[327232198,1715904715857,-207.89746341,0.00011612,2]
[327232199,1715904715866,-5866.64336106,0.00011612,2]
[327232200,1715904715878,-700.17,0.00011612,2]
[327232201,1715904715887,-586.47,0.00011612,2]
[327232202,1715904715898,-500.0,0.00011612,2]
[327232203,1715904715907,-504.62,0.00011612,2]
[327232204,1715904715916,-874.28,0.00011612,2]
[327232205,1715904715926,-578.32,0.00011612,2]
[327232206,1715904715936,-538.66,0.00011612,2]
[327232207,1715904715946,-508.41,0.00011612,2]
[327232208,1715904715956,-1031.65,0.00011612,2]
[327232209,1715904715966,-1474.34,0.00011612,2]
[327232210,1715904715976,-509.62,0.00011612,2]
[327232211,1715904715985,-923.77,0.00011612,2]
[327232212,1715904715996,-2970.16,0.00011612,2]
[327232213,1715904716006,-1926.5,0.00011612,2]
[327232214,1715904716016,-443.6048462,0.0001164,2]
[327232215,1715904716026,-157.051709,0.00011648,2]
[327232216,1715904716036,-7628.4646466,0.00011657,2]
[327232217,1715904716046,-476.8149972,0.00011657,2]
[327232218,1715904716055,-443.6048462,0.00011657,2]
[327232219,1715904716065,-157.132,0.00011665,2]
[327232220,1715904716074,-150.0,0.00011665,2]
[327232221,1715904716084,-154.067,0.00011665,2]
[327232222,1715904716094,-2159.0,0.00011665,2]
[327232223,1715904716104,-1399.0,0.00011665,2]
[327232224,1715904716113,-973.0,0.00011665,2]
[327232225,1715904716124,-1880.0,0.00011665,2]
[327232226,1715904716134,-973.0,0.00011665,2]
[327232227,1715904716143,-1225.0,0.00011665,2]
[327232228,1715904716152,-659.265,0.00011665,2]
[327232229,1715904716162,-1261.0,0.00011665,2]
[327232230,1715904716171,-1790.0,0.00011665,2]
[327232231,1715904716181,-444.0,0.00011665,2]
[327232232,1715904716190,-612.0,0.00011665,2]
[327232233,1715904716199,-239.268,0.00011665,2]
[327232234,1715904716208,-810.0,0.00011665,2]
[327232235,1715904716217,-439.0,0.00011665,2]
[327232236,1715904716227,-150.0,0.00011665,2]
[327232237,1715904716236,-2351.0,0.00011665,2]
[327232238,1715904716245,-150.0,0.00011665,2]
[327232239,1715904716255,-1647.0,0.00011665,2]
[327232240,1715904716265,-215.0,0.00011665,2]
[327232241,1715904716274,-1138.0,0.00011665,2]
[327232242,1715904716283,-3158.0,0.00011665,2]
[327232243,1715904716298,-5913.0,0.00011665,2]
[327232244,1715904716307,-288.0,0.00011665,2]
[327232245,1715904716316,-37852.0,0.00011665,2]
[327232246,1715904716326,-5752.0,0.00011665,2]
[327232247,1715904716337,-1464.0,0.00011665,2]
[327232248,1715904716346,-1102.0,0.00011665,2]
[327232249,1715904716355,-151.0,0.00011665,2]
[327232250,1715904716364,-815.922989,0.00011665,2]
[327232251,1715904716377,-815.922989,0.00011665,2]
[327232252,1715904716387,-151.0,0.00011665,2]
[327232253,1715904716397,-151.0,0.00011665,2]
[327232254,1715904716406,-340.443738,0.00011665,2]
[327232255,1715904716415,-340.443736,0.00011665,2]
[327232256,1715904716424,-2437.7248882,0.0001169,2]
[327232257,1715904716434,-157.051708,0.00011698,2]
[327232258,1715904716443,-1000.0,0.000117,2]
[327232259,1715904716452,-157.051709,0.00011748,2]
[327232260,1715904716461,-1188.10655167,0.00011786,2]
[327232261,1715904716471,-6135.7983602,0.00011791,2]
[327232262,1715904716642,-1962.0981671,0.00011791,2]
[327232263,1715904716659,-476.8149972,0.00011791,2]
[327232264,1715904716668,-443.6048462,0.00011791,2]
[327232265,1715904716678,-199.664603,0.00011793,2]
[327232266,1715904716687,-199.664603,0.00011793,2]
[327232267,1715904716698,-203.250756,0.00011793,2]
[327232268,1715904716708,-869.438713,0.00011793,2]
[327232269,1715904716719,-869.438713,0.00011793,2]
[327232270,1715904716728,-157.051708,0.00011798,2]
[327232271,1715904716740,-700.17,0.00011799,2]
[327232272,1715904716751,-700.17,0.00011799,2]
[327232273,1715904716763,-700.17,0.00011799,2]
[327232274,1715904716775,-700.17,0.00011799,2]
[327232275,1715904716784,-700.35,0.00011799,2]
[327232276,1715904716794,-586.47,0.00011799,2]
[327232277,1715904716805,-586.47,0.00011799,2]
[327232278,1715904716815,-586.47,0.00011799,2]
[327232279,1715904716824,-586.47,0.00011799,2]
[327232280,1715904716833,-586.58,0.00011799,2]
[327232281,1715904716843,-500.0,0.00011799,2]
[327232282,1715904716852,-500.0,0.00011799,2]
[327232283,1715904716862,-500.0,0.00011799,2]
[327232284,1715904716871,-508.82,0.00011799,2]
[327232285,1715904716882,-504.62,0.00011799,2]
[327232286,1715904716891,-504.62,0.00011799,2]
[327232287,1715904716901,-504.62,0.00011799,2]
[327232288,1715904716910,-504.62,0.00011799,2]
[327232289,1715904716919,-504.78,0.00011799,2]
[327232290,1715904716929,-874.28,0.00011799,2]
[327232291,1715904716939,-874.28,0.00011799,2]
[327232292,1715904716948,-874.28,0.00011799,2]
[327232293,1715904716958,-874.28,0.00011799,2]
[327232294,1715904716968,-874.38127019,0.00011799,2]
[327232295,1715904716977,-578.32,0.00011799,2]
[327232296,1715904716986,-578.32,0.00011799,2]
[327232297,1715904716996,-578.32,0.00011799,2]
[327232298,1715904717005,-578.32,0.00011799,2]
[327232299,1715904717014,-578.35182133,0.00011799,2]
[327232300,1715904717024,-538.66,0.00011799,2]